[Event "Mitropa Online Cup Women 2021"]
[Site "Hybrid"]
[Date "2021.05.04"]
[Round "6.5"]
[White "Janzelj, Lara"]
[Black "Brunello, Marina"]
[Result "0-1"]
[ECO "D23"]
[WhiteElo "2212"]
[BlackElo "2367"]
[Annotator "NA"]
[PlyCount "118"]
[EventDate "2021.05.04"]
[EventType "team-tourn"]
[EventCountry "NET"]
[SourceTitle "playchess.com"]
[Source "ChessBase"]
[SourceQuality "1"]
[WhiteTeam "Slovenia"]
[BlackTeam "Italy"]
[WhiteTeamCountry "SLO"]
[BlackTeamCountry "ITA"]
[TimeControl "40/5400+30:1800+30"]

1. d4 {[%emt 0:00:00]} d5 {[%emt 0:00:17]} 2. c4 {[%emt 0:00:09]} c6 {[%emt 0:00:40]} 3. Nf3 {[%emt 0:00:18]} Nf6 {[%emt 0:00:07]} 4. Qc2 {[%emt 0:00:14]} dxc4 {[%emt 0:00:50]} 5. Qxc4 {[%emt 0:00:13]} Bf5 {[%emt 0:00:05]} 6. g3 {[%emt 0:00:16]} e6 {[%emt 0:00:07]} 7. Bg2 {[%emt 0:00:18]} Be7 {[%emt 0:00:38]} 8. O-O {[%emt 0:00:13]} Nbd7 {[%emt 0:00:26]} 9. e3 {[%emt 0:00:40]} O-O {[%emt 0:00:20]} 10. Qe2 {[%emt 0:00:47]} Qc7 {[%emt 0:02:37]} 11. Nc3 {[%emt 0:00:18]} e5 {[%emt 0:03:55]} 12. dxe5 {[%emt 0:01:32]} Nxe5 {[%emt 0:00:29]} 13. Nxe5 {[%emt 0:00:19]} Qxe5 {[%emt 0:00:03]} 14. e4 {[%emt 0:00:12]} Bg4 {[%emt 0:10:03]} 15. f3 {[%emt 0:00:46]} Be6 {[%emt 0:01:56]} 16. Be3 {[%emt 0:04:31]} Bc5 {[%emt 0:05:29]} 17. Bxc5 {[%emt 0:06:46]} Qxc5+ {[%emt 0:00:05]} 18. Qf2 {[%emt 0:00:08]} Qxf2+ {[%emt 0:07:34]} 19. Kxf2 {[%emt 0:01:37]} Rfd8 {[%emt 0:00:10]} 20. Rfd1 {[%emt 0:00:32]} a5 {[%emt 0:00:35]} 21. h3 {[%emt 0:10:04]} Nd7 {[%emt 0:08:06]} 22. f4 {[%emt 0:09:58]} f6 {[%emt 0:00:25]} 23. Rd6 {[%emt 0:01:55]} Nc5 {[%emt 0:01:18]} 24. Rad1 {[%emt 0:00:51]} Rxd6 {[%emt 0:00:07]} 25. Rxd6 {[%emt 0:00:07]} Kf8 {[%emt 0:00:15]} 26. Ke3 {[%emt 0:05:18]} Ke7 {[%emt 0:00:11]} 27. Rd2 {[%emt 0:00:21]} a4 {[%emt 0:05:36]} 28. Rc2 {[%emt 0:11:13]} a3 {[%emt 0:04:34]} 29. b3 {[%emt 0:02:27]} Na6 {[%emt 0:01:38]} 30. Rd2 {[%emt 0:05:24]} Nb4 {[%emt 0:00:53]} 31. g4 {[%emt 0:00:52]} Ra5 {[%emt 0:03:40]} 32. Bf3 {[%emt 0:03:27]} g5 {[%emt 0:09:51]} 33. Bd1 {[%emt 0:05:03]} h6 {[%emt 0:00:46]} 34. f5 {[%emt 0:08:27]} Bf7 {[%emt 0:04:56]} 35. h4 {[%emt 0:08:15]} gxh4 {[%emt 0:05:17]} 36. Rh2 {[%emt 0:01:11]} Ra8 {[%emt 0:00:43]} 37. Rxh4 {[%emt 0:01:28]} Rd8 {[%emt 0:00:04]} 38. Be2 {[%emt 0:02:38]} Nc2+ {[%emt 0:00:05]} 39. Kf4 {[%emt 0:01:40]} b5 {[%emt 0:00:55]} 40. e5 {[%emt 0:00:00]} Rd4+ {[%emt 0:00:00]} 41. Ne4 {[%emt 0:06:35]} Bd5 {[%emt 0:05:55]} 42. exf6+ {[%emt 0:10:04]} Kf7 {[%emt 0:13:09]} 43. Bf3 {[%emt 0:02:33]} Ne1 {[%emt 0:00:06]} 44. Rxh6 {[%emt 0:04:40]} Nxf3 {[%emt 0:01:09]} 45. Rh7+ {[%emt 0:00:08]} Kg8 {[%emt 0:00:52]} 46. Rg7+ {[%emt 0:00:33]} Kf8 {[%emt 0:00:37]} 47. Kxf3 {[%emt 0:00:36]} Rxe4 {[%emt 0:00:09]} 48. Rd7 {[%emt 0:04:42]} Ke8 {[%emt 0:03:37]} 49. Rd6 {[%emt 0:00:22]} Rd4+ {[%emt 0:03:14]} 50. Kg3 {[%emt 0:00:07]} Rd2 {[%emt 0:01:08]} 51. g5 {[%emt 0:00:13]} Rxa2 {[%emt 0:00:31]} 52. g6 {[%emt 0:00:18]} Rg2+ {[%emt 0:00:37]} 53. Kf4 {[%emt 0:00:32]} a2 {[%emt 0:01:54]} 54. f7+ {[%emt 0:00:36]} Bxf7 {[%emt 0:00:21]} 55. gxf7+ {[%emt 0:00:08]} Kxf7 {[%emt 0:00:03]} 56. Rd7+ {[%emt 0:00:34]} Kf6 {[%emt 0:00:07]} 57. Ra7 {[%emt 0:00:20]} Rh2 {[%emt 0:10:47]} 58. Ke4 {[%emt 0:06:17]} Rh4+ {[%emt 0:00:40]} 59. Kd3 {[%emt 0:00:59]} Ra4 {[%emt 0:00:06]} 0-1

[Event "Mitropa Online Cup Women 2021"]
[Site "Hybrid"]
[Date "2021.05.04"]
[Round "6.5"]
[White "Hercog, Nusa"]
[Black "Gueci, Tea"]
[Result "1/2-1/2"]
[ECO "D32"]
[WhiteElo "2088"]
[BlackElo "2204"]
[Annotator "NA"]
[PlyCount "84"]
[EventDate "2021.05.04"]
[EventType "team-tourn"]
[EventCountry "NET"]
[SourceTitle "playchess.com"]
[Source "ChessBase"]
[SourceQuality "1"]
[WhiteTeam "Slovenia"]
[BlackTeam "Italy"]
[WhiteTeamCountry "SLO"]
[BlackTeamCountry "ITA"]
[TimeControl "40/5400+30:1800+30"]

1. d4 {[%emt 0:00:00]} d5 {[%emt 0:00:07]} 2. c4 {[%emt 0:00:10]} e6 {[%emt 0:00:02]} 3. Nc3 {[%emt 0:00:14]} c5 {[%emt 0:00:05]} 4. cxd5 {[%emt 0:02:37]} exd5 {[%emt 0:00:03]} 5. Nf3 {[%emt 0:03:08]} Nc6 {[%emt 0:00:09]} 6. dxc5 {[%emt 0:07:50]} d4 {[%emt 0:00:39]} 7. Na4 {[%emt 0:00:39]} Bxc5 {[%emt 0:00:29]} 8. Nxc5 {[%emt 0:00:09]} Qa5+ {[%emt 0:00:03]} 9. Bd2 {[%emt 0:00:15]} Qxc5 {[%emt 0:00:03]} 10. Rc1 {[%emt 0:00:50]} Qb6 {[%emt 0:03:29]} 11. e3 {[%emt 0:02:56]} Nf6 {[%emt 0:01:24]} 12. Bc4 {[%emt 0:05:03]} O-O {[%emt 0:06:26]} 13. h3 {[%emt 0:04:40]} Qxb2 {[%emt 0:07:23]} 14. Nxd4 {[%emt 0:09:31]} Ne4 {[%emt 0:09:42]} 15. Rc2 {[%emt 0:07:43]} Qb6 {[%emt 0:00:53]} 16. Nxc6 {[%emt 0:01:35]} bxc6 {[%emt 0:01:01]} 17. O-O {[%emt 0:03:19]} Bf5 {[%emt 0:04:23]} 18. Qa1 {[%emt 0:09:21]} Qd8 {[%emt 0:13:29]} 19. Bb4 {[%emt 0:09:40]} c5 {[%emt 0:01:30]} 20. Qe5 {[%emt 0:01:07]} Qf6 {[%emt 0:12:36]} 21. Bc3 {[%emt 0:06:11]} Qxe5 {[%emt 0:04:49]} 22. Bxe5 {[%emt 0:00:08]} Rfe8 {[%emt 0:09:43]} 23. Bh2 {[%emt 0:03:49]} Nd6 {[%emt 0:04:15]} 24. Bd5 {[%emt 0:03:01]} Bxc2 {[%emt 0:02:33]} 25. Bxa8 {[%emt 0:00:13]} Rxa8 {[%emt 0:00:07]} 26. Bxd6 {[%emt 0:00:08]} c4 {[%emt 0:00:27]} 27. Rc1 {[%emt 0:01:03]} Bd3 {[%emt 0:00:27]} 28. Bb4 {[%emt 0:02:34]} Rb8 {[%emt 0:01:12]} 29. a3 {[%emt 0:00:42]} Rb5 {[%emt 0:02:30]} 30. f3 {[%emt 0:04:17]} f5 {[%emt 0:04:00]} 31. Kf2 {[%emt 0:03:38]} Kf7 {[%emt 0:00:55]} 32. Ke1 {[%emt 0:01:33]} Ke6 {[%emt 0:01:53]} 33. Kf2 {[%emt 0:04:32]} a5 {[%emt 0:02:46]} 34. Bc3 {[%emt 0:00:17]} g6 {[%emt 0:00:02]} 35. Ke1 {[%emt 0:00:53]} Kd5 {[%emt 0:01:22]} 36. Kd2 {[%emt 0:00:43]} Kc6 {[%emt 0:01:40]} 37. Ra1 {[%emt 0:00:53]} Rd5 {[%emt 0:04:06]} 38. Ke1 {[%emt 0:02:49]} Rb5 {[%emt 0:01:12]} 39. Kd2 {[%emt 0:00:13]} Kb6 {[%emt 0:00:39]} 40. a4 {[%emt 0:00:00]} Rb3 {[%emt 0:00:00]} 41. Bd4+ {[%emt 0:06:01]} Kc6 {[%emt 0:05:27]} 42. h4 {[%emt 0:02:19]} h5 {[%emt 0:02:53]} 1/2-1/2

[Event "Mitropa Online Cup Women 2021"]
[Site "Hybrid"]
[Date "2021.05.04"]
[Round "6.5"]
[White "Grimaldi, Angela Flavia"]
[Black "Ruzic, Pia Marie"]
[Result "1-0"]
[ECO "C11"]
[WhiteElo "2060"]
[BlackElo "1990"]
[Annotator "NA"]
[PlyCount "53"]
[EventDate "2021.05.04"]
[EventType "team-tourn"]
[EventCountry "NET"]
[SourceTitle "playchess.com"]
[Source "ChessBase"]
[SourceQuality "1"]
[WhiteTeam "Italy"]
[BlackTeam "Slovenia"]
[WhiteTeamCountry "ITA"]
[BlackTeamCountry "SLO"]
[TimeControl "40/5400+30:1800+30"]

1. e4 {[%emt 0:00:00]} e6 {[%emt 0:00:07]} 2. d4 {[%emt 0:00:06]} d5 {[%emt 0:00:06]} 3. Nc3 {[%emt 0:00:09]} Nf6 {[%emt 0:00:10]} 4. e5 {[%emt 0:00:36]} Nfd7 {[%emt 0:00:07]} 5. Nce2 {[%emt 0:00:21]} c5 {[%emt 0:00:10]} 6. c3 {[%emt 0:00:05]} Nc6 {[%emt 0:00:09]} 7. Nf3 {[%emt 0:00:08]} Qb6 {[%emt 0:02:02]} 8. a3 {[%emt 0:01:01]} a5 {[%emt 0:00:34]} 9. g3 {[%emt 0:00:59]} Be7 {[%emt 0:04:17]} 10. Bg2 {[%emt 0:00:12]} O-O {[%emt 0:04:58]} 11. O-O {[%emt 0:00:25]} cxd4 {[%emt 0:04:02]} 12. cxd4 {[%emt 0:00:45]} f6 {[%emt 0:00:36]} 13. exf6 {[%emt 0:03:24]} Nxf6 {[%emt 0:01:37]} 14. Nc3 {[%emt 0:05:02]} Bd7 {[%emt 0:11:26]} 15. Bf4 {[%emt 0:14:25]} Ne4 {[%emt 0:12:28]} 16. Nxe4 {[%emt 0:06:53]} dxe4 {[%emt 0:00:12]} 17. Ne5 {[%emt 0:00:47]} Nxe5 {[%emt 0:15:55]} 18. Bxe5 {[%emt 0:02:11]} Bf6 {[%emt 0:06:05]} 19. Bxe4 {[%emt 0:10:33]} Bxe5 {[%emt 0:08:32]} 20. Qh5 {[%emt 0:06:01]} Rf5 {[%emt 0:05:20]} 21. Bxf5 {[%emt 0:01:51]} exf5 {[%emt 0:00:04]} 22. dxe5 {[%emt 0:00:27]} Qxb2 {[%emt 0:09:11]} 23. Rfe1 {[%emt 0:13:44]} Rc8 {[%emt 0:05:44]} 24. Rab1 {[%emt 0:06:21]} Qd2 {[%emt 0:04:20]} 25. e6 {[%emt 0:03:55]} Bc6 {[%emt 0:01:28]} 26. Qf7+ {[%emt 0:01:18]} Kh8 {[%emt 0:00:19]} 27. e7 {[%emt 0:00:39]} 1-0

[Event "Mitropa Online Cup Women 2021"]
[Site "Hybrid"]
[Date "2021.05.04"]
[Round "7.1"]
[White "Brunello, Marina"]
[Black "Schneider, Jana"]
[Result "1/2-1/2"]
[ECO "C54"]
[WhiteElo "2367"]
[BlackElo "2272"]
[Annotator "NA"]
[PlyCount "109"]
[EventDate "2021.05.04"]
[EventType "team-tourn"]
[EventCountry "NET"]
[SourceTitle "playchess.com"]
[Source "ChessBase"]
[SourceQuality "1"]
[WhiteTeam "Italy"]
[BlackTeam "Germany"]
[WhiteTeamCountry "ITA"]
[BlackTeamCountry "GER"]
[TimeControl "40/5400+30:1800+30"]

1. e4 {[%emt 0:00:00]} e5 {[%emt 0:00:11]} 2. Nf3 {[%emt 0:00:38]} Nc6 {[%emt 0:00:09]} 3. Bc4 {[%emt 0:00:04]} Bc5 {[%emt 0:00:08]} 4. d3 {[%emt 0:00:05]} Nf6 {[%emt 0:00:09]} 5. O-O {[%emt 0:00:04]} d6 {[%emt 0:00:36]} 6. c3 {[%emt 0:04:27]} a6 {[%emt 0:00:23]} 7. a4 {[%emt 0:03:28]} Ba7 {[%emt 0:00:39]} 8. Na3 {[%emt 0:00:41]} O-O {[%emt 0:00:34]} 9. Bb3 {[%emt 0:01:24]} Ne7 {[%emt 0:01:30]} 10. Bc2 {[%emt 0:00:42]} Ng6 {[%emt 0:02:18]} 11. h3 {[%emt 0:00:42]} Nh5 {[%emt 0:13:57]} 12. Bg5 {[%emt 0:21:39]} Qe8 {[%emt 0:09:53]} 13. Be3 {[%emt 0:05:01]} Nhf4 {[%emt 0:01:52]} 14. d4 {[%emt 0:03:45]} Qe6 {[%emt 0:05:37]} 15. Bb3 {[%emt 0:16:12]} Qf6 {[%emt 0:03:28]} 16. Nc4 {[%emt 0:03:20]} Rd8 {[%emt 0:05:15]} 17. Ncd2 {[%emt 0:02:48]} h6 {[%emt 0:14:11]} 18. Bc4 {[%emt 0:03:27]} Ne6 {[%emt 0:02:52]} 19. Nb3 {[%emt 0:04:58]} Ngf4 {[%emt 0:00:56]} 20. Kh2 {[%emt 0:01:33]} Nf8 {[%emt 0:17:05]} 21. Re1 {[%emt 0:02:20]} g5 {[%emt 0:02:00]} 22. Bxf4 {[%emt 0:01:11]} Qxf4+ {[%emt 0:01:22]} 23. g3 {[%emt 0:00:10]} Qf6 {[%emt 0:00:07]} 24. Kg2 {[%emt 0:00:06]} Kg7 {[%emt 0:00:40]} 25. Nh2 {[%emt 0:00:31]} Be6 {[%emt 0:04:05]} 26. Ng4 {[%emt 0:02:57]} Bxg4 {[%emt 0:01:40]} 27. hxg4 {[%emt 0:00:04]} exd4 {[%emt 0:03:47]} 28. Nxd4 {[%emt 0:06:04]} Bxd4 {[%emt 0:00:08]} 29. Qxd4 {[%emt 0:00:33]} Qxd4 {[%emt 0:00:24]} 30. cxd4 {[%emt 0:00:02]} Ne6 {[%emt 0:01:17]} 31. d5 {[%emt 0:03:59]} Nc5 {[%emt 0:01:08]} 32. a5 {[%emt 0:00:24]} Re8 {[%emt 0:01:05]} 33. f3 {[%emt 0:00:22]} Re7 {[%emt 0:01:24]} 34. Rec1 {[%emt 0:01:28]} h5 {[%emt 0:02:48]} 35. b4 {[%emt 0:01:28]} Nd7 {[%emt 0:00:12]} 36. gxh5 {[%emt 0:02:29]} g4 {[%emt 0:00:07]} 37. fxg4 {[%emt 0:02:52]} Rxe4 {[%emt 0:02:29]} 38. Bd3 {[%emt 0:00:03]} Rxb4 {[%emt 0:00:11]} 39. Rxc7 {[%emt 0:00:06]} Ne5 {[%emt 0:00:09]} 40. Bf5 {[%emt 0:00:00]} Nxg4 {[%emt 0:00:00]} 41. Bxg4 {[%emt 0:03:02]} Rxg4 {[%emt 0:05:06]} 42. Rf1 {[%emt 0:05:20]} Rf8 {[%emt 0:01:58]} 43. Rxb7 {[%emt 0:02:18]} Rg5 {[%emt 0:02:58]} 44. h6+ {[%emt 0:02:07]} Kxh6 {[%emt 0:06:37]} 45. Rf6+ {[%emt 0:00:06]} Kg7 {[%emt 0:00:07]} 46. Rxd6 {[%emt 0:00:04]} Rc8 {[%emt 0:00:29]} 47. Rb3 {[%emt 0:06:24]} Rc2+ {[%emt 0:01:12]} 48. Kf3 {[%emt 0:00:20]} Ra2 {[%emt 0:00:09]} 49. Rd3 {[%emt 0:00:17]} Rxa5 {[%emt 0:00:29]} 50. Rd8 {[%emt 0:00:15]} Kf6 {[%emt 0:00:55]} 51. d6 {[%emt 0:00:26]} Rad5 {[%emt 0:01:54]} 52. Rxd5 {[%emt 0:00:37]} Rxd5 {[%emt 0:00:08]} 53. d7 {[%emt 0:00:03]} Ke7 {[%emt 0:00:15]} 54. Ra8 {[%emt 0:00:02]} Rxd7 {[%emt 0:00:13]} 55. Rxa6 {[%emt 0:00:02]} 1/2-1/2

[Event "Mitropa Online Cup Women 2021"]
[Site "Hybrid"]
[Date "2021.05.04"]
[Round "7.1"]
[White "Klek, Hanna Marie"]
[Black "Zimina, Olga"]
[Result "0-1"]
[ECO "B12"]
[WhiteElo "2302"]
[BlackElo "2354"]
[Annotator "NA"]
[PlyCount "104"]
[EventDate "2021.05.04"]
[EventType "team-tourn"]
[EventCountry "NET"]
[SourceTitle "playchess.com"]
[Source "ChessBase"]
[SourceQuality "1"]
[WhiteTeam "Germany"]
[BlackTeam "Italy"]
[WhiteTeamCountry "GER"]
[BlackTeamCountry "ITA"]
[TimeControl "40/5400+30:1800+30"]

1. e4 {[%emt 0:00:00]} c6 {[%emt 0:00:12]} 2. d4 {[%emt 0:00:06]} d5 {[%emt 0:00:09]} 3. e5 {[%emt 0:00:04]} Bf5 {[%emt 0:00:06]} 4. h4 {[%emt 0:00:06]} h5 {[%emt 0:00:08]} 5. Bd3 {[%emt 0:00:06]} Bxd3 {[%emt 0:00:08]} 6. Qxd3 {[%emt 0:00:07]} e6 {[%emt 0:00:07]} 7. Bg5 {[%emt 0:00:07]} Be7 {[%emt 0:00:07]} 8. Nf3 {[%emt 0:00:08]} Nh6 {[%emt 0:00:06]} 9. Bxh6 {[%emt 0:00:10]} Rxh6 {[%emt 0:00:08]} 10. Nbd2 {[%emt 0:00:08]} c5 {[%emt 0:00:16]} 11. c3 {[%emt 0:00:07]} Nc6 {[%emt 0:00:07]} 12. a3 {[%emt 0:00:12]} a5 {[%emt 0:00:55]} 13. g3 {[%emt 0:01:48]} Rg6 {[%emt 0:02:18]} 14. Kf1 {[%emt 0:03:25]} Qb6 {[%emt 0:02:37]} 15. Kg2 {[%emt 0:01:26]} a4 {[%emt 0:00:13]} 16. Rab1 {[%emt 0:00:43]} Qa7 {[%emt 0:07:19]} 17. Rhd1 {[%emt 0:02:09]} Kf8 {[%emt 0:02:45]} 18. dxc5 {[%emt 0:04:50]} Bxc5 {[%emt 0:00:40]} 19. Qe2 {[%emt 0:00:11]} Qa6 {[%emt 0:09:32]} 20. c4 {[%emt 0:11:41]} Be7 {[%emt 0:05:13]} 21. Rbc1 {[%emt 0:06:33]} Rd8 {[%emt 0:09:56]} 22. Qf1 {[%emt 0:17:09]} Qb6 {[%emt 0:05:40]} 23. Rc2 {[%emt 0:04:39]} d4 {[%emt 0:20:52]} 24. Qd3 {[%emt 0:05:00]} Qc7 {[%emt 0:04:38]} 25. Re1 {[%emt 0:02:00]} b6 {[%emt 0:01:04]} 26. Kh2 {[%emt 0:04:03]} Kg8 {[%emt 0:00:29]} 27. Rcc1 {[%emt 0:03:19]} Rg4 {[%emt 0:03:37]} 28. Re2 {[%emt 0:02:24]} Na5 {[%emt 0:10:32]} 29. Rd1 {[%emt 0:10:46]} Nb7 {[%emt 0:03:25]} 30. b4 {[%emt 0:00:30]} axb3 {[%emt 0:00:45]} 31. Nxb3 {[%emt 0:00:52]} Nc5 {[%emt 0:03:50]} 32. Nxc5 {[%emt 0:00:28]} Qxc5 {[%emt 0:00:31]} 33. Ne1 {[%emt 0:01:40]} Qxa3 {[%emt 0:05:25]} 34. f3 {[%emt 0:00:39]} Rg6 {[%emt 0:00:34]} 35. Qxa3 {[%emt 0:02:51]} Bxa3 {[%emt 0:00:11]} 36. Nd3 {[%emt 0:02:48]} Bc5 {[%emt 0:02:00]} 37. Ra2 {[%emt 0:01:56]} Rc8 {[%emt 0:01:17]} 38. Ra7 {[%emt 0:03:54]} f6 {[%emt 0:00:32]} 39. Rb7 {[%emt 0:05:24]} fxe5 {[%emt 0:00:11]} 40. Nxe5 {[%emt 0:00:00]} Rf6 {[%emt 0:00:00]} 41. Ra1 {[%emt 0:06:24]} Bd6 {[%emt 0:14:16]} 42. f4 {[%emt 0:02:02]} Bxe5 {[%emt 0:00:52]} 43. fxe5 {[%emt 0:00:05]} Rg6 {[%emt 0:09:04]} 44. Rxb6 {[%emt 0:07:15]} Rxc4 {[%emt 0:00:11]} 45. Rd1 {[%emt 0:06:36]} Rc2+ {[%emt 0:00:35]} 46. Kh3 {[%emt 0:00:26]} Rc3 {[%emt 0:02:30]} 47. Rxd4 {[%emt 0:02:42]} Rgxg3+ {[%emt 0:01:15]} 48. Kh2 {[%emt 0:00:07]} Rge3 {[%emt 0:00:15]} 49. Rb2 {[%emt 0:03:20]} Rxe5 {[%emt 0:00:31]} 50. Rg2 {[%emt 0:00:25]} Ree3 {[%emt 0:00:47]} 51. Rgd2 {[%emt 0:03:28]} Kh7 {[%emt 0:00:41]} 52. Rd6 {[%emt 0:01:27]} Rc4 {[%emt 0:00:35]} 0-1

[Event "Mitropa Online Cup Women 2021"]
[Site "Hybrid"]
[Date "2021.05.04"]
[Round "7.1"]
[White "Sedina, Elena"]
[Black "Muetsch, Annmarie"]
[Result "1-0"]
[ECO "C41"]
[WhiteElo "2291"]
[BlackElo "2266"]
[Annotator "NA"]
[PlyCount "139"]
[EventDate "2021.05.04"]
[EventType "team-tourn"]
[EventCountry "NET"]
[SourceTitle "playchess.com"]
[Source "ChessBase"]
[SourceQuality "1"]
[WhiteTeam "Italy"]
[BlackTeam "Germany"]
[WhiteTeamCountry "ITA"]
[BlackTeamCountry "GER"]
[TimeControl "40/5400+30:1800+30"]

1. e4 {[%emt 0:00:00]} d6 {[%emt 0:00:11]} 2. d4 {[%emt 0:00:15]} Nf6 {[%emt 0:00:08]} 3. Nc3 {[%emt 0:00:11]} Nbd7 {[%emt 0:00:13]} 4. Nf3 {[%emt 0:01:01]} e5 {[%emt 0:00:14]} 5. Bc4 {[%emt 0:00:10]} Be7 {[%emt 0:00:08]} 6. a4 {[%emt 0:00:46]} c6 {[%emt 0:00:44]} 7. O-O {[%emt 0:04:46]} Qc7 {[%emt 0:02:05]} 8. Re1 {[%emt 0:01:44]} h6 {[%emt 0:00:22]} 9. a5 {[%emt 0:14:22]} Nf8 {[%emt 0:02:06]} 10. Be3 {[%emt 0:01:49]} Ng4 {[%emt 0:04:21]} 11. Bc1 {[%emt 0:22:13]} g5 {[%emt 0:10:07]} 12. a6 {[%emt 0:16:08]} b5 {[%emt 0:03:41]} 13. Bf1 {[%emt 0:06:55]} Ng6 {[%emt 0:08:18]} 14. Ne2 {[%emt 0:14:15]} Nf6 {[%emt 0:21:18]} 15. Ng3 {[%emt 0:05:44]} Nh4 {[%emt 0:11:21]} 16. Nxh4 {[%emt 0:03:05]} gxh4 {[%emt 0:00:08]} 17. Nf5 {[%emt 0:01:23]} Bxf5 {[%emt 0:01:14]} 18. exf5 {[%emt 0:00:06]} e4 {[%emt 0:01:03]} 19. Bf4 {[%emt 0:04:00]} Qd7 {[%emt 0:01:19]} 20. f3 {[%emt 0:00:29]} Qxf5 {[%emt 0:01:51]} 21. Qd2 {[%emt 0:00:02]} d5 {[%emt 0:05:14]} 22. Be5 {[%emt 0:00:45]} Kf8 {[%emt 0:05:11]} 23. Qf4 {[%emt 0:00:38]} Qxf4 {[%emt 0:01:50]} 24. Bxf4 {[%emt 0:00:02]} Nh5 {[%emt 0:00:49]} 25. Bd2 {[%emt 0:00:06]} f5 {[%emt 0:03:09]} 26. Be2 {[%emt 0:00:07]} Ng7 {[%emt 0:00:30]} 27. fxe4 {[%emt 0:01:42]} dxe4 {[%emt 0:00:07]} 28. Bf4 {[%emt 0:00:22]} Kf7 {[%emt 0:00:38]} 29. c3 {[%emt 0:00:30]} Rad8 {[%emt 0:02:11]} 30. b3 {[%emt 0:00:27]} Bf6 {[%emt 0:01:12]} 31. Rf1 {[%emt 0:00:09]} b4 {[%emt 0:00:42]} 32. Bc4+ {[%emt 0:01:09]} Ke7 {[%emt 0:00:30]} 33. Be5 {[%emt 0:00:23]} bxc3 {[%emt 0:00:40]} 34. Rac1 {[%emt 0:00:07]} Bxe5 {[%emt 0:06:47]} 35. dxe5 {[%emt 0:00:03]} Rd2 {[%emt 0:02:58]} 36. Rxc3 {[%emt 0:00:08]} Rhd8 {[%emt 0:00:34]} 37. Rh3 {[%emt 0:01:48]} Rb2 {[%emt 0:02:31]} 38. Rxh4 {[%emt 0:00:28]} Rdd2 {[%emt 0:00:23]} 39. g4 {[%emt 0:00:17]} Rg2+ {[%emt 0:01:19]} 40. Kh1 {[%emt 0:00:00]} Rgf2 {[%emt 0:00:00]} 41. Rxf2 {[%emt 0:02:38]} Rxf2 {[%emt 0:01:24]} 42. gxf5 {[%emt 0:00:18]} Nxf5 {[%emt 0:01:18]} 43. Rxe4 {[%emt 0:03:16]} Ng7 {[%emt 0:05:41]} 44. Kg1 {[%emt 0:14:00]} Rf5 {[%emt 0:06:32]} 45. Rg4 {[%emt 0:04:13]} Ne8 {[%emt 0:04:17]} 46. Rg6 {[%emt 0:01:02]} Rxe5 {[%emt 0:01:05]} 47. Rxh6 {[%emt 0:00:26]} Nf6 {[%emt 0:03:32]} 48. Rg6 {[%emt 0:00:14]} Ne4 {[%emt 0:04:17]} 49. Rxc6 {[%emt 0:05:56]} Rg5+ {[%emt 0:00:11]} 50. Kf1 {[%emt 0:00:05]} Nd2+ {[%emt 0:00:11]} 51. Kf2 {[%emt 0:01:03]} Rh5 {[%emt 0:01:47]} 52. Kg3 {[%emt 0:02:08]} Rg5+ {[%emt 0:00:36]} 53. Kf4 {[%emt 0:00:40]} Rh5 {[%emt 0:00:18]} 54. Kg3 {[%emt 0:01:28]} Rg5+ {[%emt 0:00:05]} 55. Kf4 {[%emt 0:00:38]} Rh5 {[%emt 0:00:07]} 56. Re6+ {[%emt 0:00:17]} Kd7 {[%emt 0:00:22]} 57. Re2 {[%emt 0:00:03]} Nxc4 {[%emt 0:00:18]} 58. bxc4 {[%emt 0:00:03]} Rh4+ {[%emt 0:00:03]} 59. Kg5 {[%emt 0:00:08]} Rxc4 {[%emt 0:00:04]} 60. h4 {[%emt 0:00:29]} Kc6 {[%emt 0:02:34]} 61. h5 {[%emt 0:00:49]} Kb5 {[%emt 0:01:17]} 62. Re6 {[%emt 0:00:25]} Rc1 {[%emt 0:00:44]} 63. h6 {[%emt 0:00:09]} Rg1+ {[%emt 0:00:08]} 64. Kf6 {[%emt 0:00:05]} Rf1+ {[%emt 0:00:25]} 65. Kg7 {[%emt 0:00:04]} Rg1+ {[%emt 0:00:16]} 66. Rg6 {[%emt 0:00:04]} Rc1 {[%emt 0:00:22]} 67. h7 {[%emt 0:00:07]} Rc7+ {[%emt 0:00:09]} 68. Kh6 {[%emt 0:00:03]} Rc8 {[%emt 0:00:12]} 69. Rg8 {[%emt 0:00:43]} Rc6+ {[%emt 0:00:05]} 70. Kg5 {[%emt 0:01:00]} 1-0

[Event "Mitropa Online Cup Women 2021"]
[Site "Hybrid"]
[Date "2021.05.04"]
[Round "7.1"]
[White "Lubbe, Melanie"]
[Black "Gueci, Tea"]
[Result "1-0"]
[ECO "B21"]
[WhiteElo "2274"]
[BlackElo "2204"]
[Annotator "NA"]
[PlyCount "83"]
[EventDate "2021.05.04"]
[EventType "team-tourn"]
[EventCountry "NET"]
[SourceTitle "playchess.com"]
[Source "ChessBase"]
[SourceQuality "1"]
[WhiteTeam "Germany"]
[BlackTeam "Italy"]
[WhiteTeamCountry "GER"]
[BlackTeamCountry "ITA"]
[TimeControl "40/5400+30:1800+30"]

1. e4 {[%emt 0:00:00]} c5 {[%emt 0:00:03]} 2. f4 {[%emt 0:00:12]} Nc6 {[%emt 0:00:47]} 3. Nf3 {[%emt 0:00:45]} g6 {[%emt 0:01:31]} 4. Bb5 {[%emt 0:01:41]} Bg7 {[%emt 0:00:32]} 5. O-O {[%emt 0:01:12]} Nd4 {[%emt 0:05:21]} 6. Nxd4 {[%emt 0:03:10]} cxd4 {[%emt 0:01:32]} 7. Qf3 {[%emt 0:02:12]} Qb6 {[%emt 0:15:45]} 8. Na3 {[%emt 0:11:38]} f5 {[%emt 0:26:00]} 9. exf5 {[%emt 0:15:39]} gxf5 {[%emt 0:00:20]} 10. Bd3 {[%emt 0:01:38]} Nh6 {[%emt 0:04:43]} 11. Re1 {[%emt 0:07:12]} Qf6 {[%emt 0:04:43]} 12. Nb5 {[%emt 0:04:17]} O-O {[%emt 0:01:56]} 13. Nc7 {[%emt 0:02:11]} Rb8 {[%emt 0:02:20]} 14. Nd5 {[%emt 0:00:16]} Qd6 {[%emt 0:01:46]} 15. Nxe7+ {[%emt 0:02:26]} Kh8 {[%emt 0:00:20]} 16. Nxc8 {[%emt 0:02:08]} Rfxc8 {[%emt 0:01:15]} 17. a4 {[%emt 0:04:40]} Re8 {[%emt 0:03:44]} 18. Rf1 {[%emt 0:00:13]} Qe6 {[%emt 0:07:55]} 19. b3 {[%emt 0:02:42]} Ng4 {[%emt 0:01:58]} 20. Bb2 {[%emt 0:02:16]} b6 {[%emt 0:01:52]} 21. h3 {[%emt 0:01:57]} Nh6 {[%emt 0:01:19]} 22. Qf2 {[%emt 0:04:01]} Qd6 {[%emt 0:00:47]} 23. Rfe1 {[%emt 0:01:05]} Re6 {[%emt 0:02:52]} 24. Rxe6 {[%emt 0:04:30]} dxe6 {[%emt 0:00:03]} 25. Ba3 {[%emt 0:00:36]} Qc6 {[%emt 0:01:45]} 26. Re1 {[%emt 0:00:37]} Nf7 {[%emt 0:02:27]} 27. Bc4 {[%emt 0:01:49]} Nd8 {[%emt 0:01:59]} 28. Be7 {[%emt 0:03:29]} d3 {[%emt 0:00:56]} 29. Bxd3 {[%emt 0:01:53]} Qd7 {[%emt 0:02:44]} 30. Qh4 {[%emt 0:00:09]} Nc6 {[%emt 0:00:50]} 31. Bf6 {[%emt 0:01:00]} Nd4 {[%emt 0:00:43]} 32. Bxg7+ {[%emt 0:03:04]} Qxg7 {[%emt 0:00:02]} 33. Qf2 {[%emt 0:01:00]} Re8 {[%emt 0:01:55]} 34. b4 {[%emt 0:03:31]} Re7 {[%emt 0:00:38]} 35. c3 {[%emt 0:00:53]} Nc6 {[%emt 0:00:29]} 36. Qf3 {[%emt 0:00:21]} Nd8 {[%emt 0:00:52]} 37. Bb5 {[%emt 0:02:17]} h6 {[%emt 0:01:40]} 38. d4 {[%emt 0:03:31]} Nb7 {[%emt 0:00:21]} 39. Bd3 {[%emt 0:04:27]} Nd6 {[%emt 0:00:39]} 40. Kh2 {[%emt 0:00:00]} Qf6 {[%emt 0:00:00]} 41. Qe3 {[%emt 0:09:29]} Nf7 {[%emt 0:04:05]} 42. c4 {[%emt 0:02:45]} 1-0